bitfinex-derivatives/quotes_ETHF0:USTF0_20250908
["timestamp","ask_amount","ask_price","bid_price","bid_amount"]
[1757362113247,0.7437,4291.3,4291.2,0.7047]
[1757362115154,0.2106,4291.3,4291.2,0.7047]
[1757362115455,0.3211,4291.9,4291.3,0.294]
[1757362115650,1.32958449,4291.8,4291.7,0.2063]
[1757362115850,1.32958449,4291.8,4291.7,0.5003]
[1757362116650,1.32958449,4291.8,4291.7,0.7047]
[1757362119951,0.58588449,4291.8,4291.7,0.93771]
[1757362120153,0.7437,4292.7,4292.6,0.2063]
[1757362120351,1.00889623,4292.7,4292.6,0.7047]
[1757362120547,1.32999623,4292.7,4292.6,0.7047]
[1757362128365,0.58629623,4292.7,4292.6,0.7047]
[1757362128559,0.5191,4293.3,4293.2,0.4146]
[1757362128765,0.2033,4293.3,4293.2,0.7241]
[1757362128963,0.7887551,4293.3,4293.2,0.7241]
[1757362129463,0.2033,4293.3,4293.2,0.7241]
[1757362129853,1.30367265,4293.3,4293.2,0.7241]
[1757362130560,0.7184,4293.3,4293.2,0.7241]
[1757362137863,0.7184,4293.9,4293.8,0.2057]
[1757362138059,1.3026438,4293.9,4293.8,0.2057]
[1757362138364,1.3026438,4293.9,4293.6,0.3095]
[1757362138564,0.7184,4293.7,4293.6,0.5152]
[1757362138757,1.3026438,4293.7,4293.6,0.5152]
[1757362139764,0.7184,4293.7,4293.6,0.5152]
[1757362140361,0.7184,4293.2,4293.1,0.3095]
[1757362140564,0.7184,4293.2,4293.1,0.5152]
[1757362141666,0.7184,4293.2,4293.1,0.7241]
[1757362142966,0.7184,4293.2,4292.6,0.3095]
[1757362144468,0.7184,4293.2,4293.1,0.7241]
[1757362150170,0.7184,4293.2,4292.9,0.3095]
[1757362150370,0.8365,4293.0,4292.9,0.5152]
[1757362150765,0.7184,4293.0,4292.9,0.7241]
[1757362152375,0.8365,4293.0,4292.9,0.7241]
[1757362152868,0.1181,4293.5,4293.0,0.1254]
[1757362153176,0.8365,4293.5,4293.4,0.5152]
[1757362153374,1.42188083,4293.5,4293.4,0.5152]
[1757362154381,1.42188083,4293.5,4293.4,0.7241]
[1757362154676,1.30378083,4293.5,4293.4,0.7241]
[1757362157475,1.42948083,4293.5,4293.4,0.5152]
[1757362158376,1.42948083,4293.5,4293.1,0.2939]
[1757362158669,0.58538083,4293.4,4293.3,0.2122]
[1757362158870,0.98008083,4293.4,4293.3,0.5061]
[1757362159182,1.29858083,4293.4,4293.3,0.5061]
[1757362161874,1.29858083,4293.4,4293.0,0.2939]
[1757362162077,0.7132,4293.1,4293.0,0.5061]
[1757362162278,1.29858083,4293.1,4293.0,0.5061]
[1757362162478,1.29858083,4293.1,4293.0,0.7053]
[1757362164674,0.7132,4293.1,4293.0,0.7053]
[1757362166285,0.7132,4293.1,4293.0,0.8267]
[1757362167988,1.29777356,4293.1,4293.0,0.8267]
[1757362169785,1.29777356,4293.1,4293.0,0.7053]
[1757362171293,1.29777356,4293.1,4293.0,0.8267]
[1757362173891,0.58457356,4293.1,4293.0,0.8267]
[1757362174088,0.3185,4293.5,4293.0,0.8267]
[1757362174290,0.58471824,4293.4,4293.3,0.4114]
[1757362174590,0.58471824,4293.4,4293.3,0.7053]
[1757362175185,0.58471824,4293.4,4293.3,4.93822]
[1757362175385,0.3234,4294.5,4294.4,0.1923]
[1757362175590,0.8389,4294.5,4294.4,0.1923]
[1757362175793,0.8389,4294.5,4293.9,0.1196]
[1757362175994,0.6419,4294.0,4293.9,0.3846]
[1757362178090,0.6419,4294.0,4293.9,0.5042]
[1757362178493,0.8389,4294.0,4293.9,0.3846]
[1757362181409,0.8389,4294.0,4293.9,0.1923]
[1757362181798,0.8389,4294.0,4293.1,0.146]
[1757362181999,0.8389,4294.0,4293.3,0.1196]
[1757362182505,0.6419,4293.5,4293.4,0.6155]
[1757362182707,0.1257,4294.0,4293.4,0.3826]
[1757362182912,0.3185,4293.9,4293.8,0.5022]
[1757362183106,0.1257,4294.5,4293.2,0.214]
[1757362183107,0.3185,4294.4,4294.3,0.3826]
[1757362183299,0.1977,4295.0,4294.9,0.3826]
[1757362183505,0.8389,4295.0,4294.9,0.3826]
[1757362184207,0.8389,4295.0,4294.9,0.1913]
[1757362184411,0.8389,4295.0,4294.2,0.30212452]
[1757362184609,0.3185,4294.4,4293.4,0.1196]
[1757362184910,0.3185,4293.5,4293.4,0.7402]
[1757362185609,0.1257,4294.5,4294.3,0.3826]
[1757362185610,0.5162,4294.4,4294.3,0.3826]
[1757362185811,0.5162,4294.4,4294.3,0.5022]
[1757362186113,0.7154,4294.4,4294.3,0.3826]
[1757362186308,0.5162,4294.4,4294.3,0.3826]
[1757362186610,0.5162,4294.4,4294.3,0.5024]
[1757362187414,0.5162,4294.4,4294.3,0.3826]
[1757362190314,0.7154,4294.4,4294.3,0.3826]
[1757362191613,0.7154,4294.4,4294.3,0.1913]
[1757362197318,0.2978,4294.3,4293.5,0.1198]
[1757362197619,0.2978,4294.3,4293.6,0.1198]
[1757362198114,0.2095,4293.7,4293.6,0.3834]
[1757362198318,0.7065,4293.7,4293.6,0.3834]
[1757362198513,0.7065,4293.7,4293.6,0.6214]
[1757362199222,0.5073,4293.7,4293.6,0.7412]
[1757362199419,0.5073,4293.7,4293.6,0.6214]
[1757362199716,0.2978,4293.9,4293.7,0.1198]
[1757362199915,0.5073,4294.4,4294.3,0.3834]
[1757362200217,0.2978,4294.4,4294.3,0.7412]
[1757362200418,0.5073,4294.4,4294.3,0.7412]
[1757362200613,0.5073,4294.4,4294.3,0.6214]
[1757362200916,0.2978,4294.9,4294.4,0.1198]
[1757362201221,0.5073,4294.9,4294.8,0.3834]
[1757362201416,0.7065,4294.9,4294.8,0.3834]
[1757362201717,0.7065,4294.9,4294.8,0.1917]
[1757362202223,0.7065,4294.9,4294.3,0.238]
[1757362202416,0.8278,4294.5,4294.4,0.3834]
[1757362202721,0.5073,4293.6,4293.5,0.3834]
[1757362202920,0.2978,4294.4,4293.6,0.1198]
[1757362203222,0.2978,4294.4,4294.3,0.5032]
[1757362203420,0.2978,4294.4,4294.3,0.7412]
[1757362204423,0.5073,4294.4,4294.3,0.7412]
[1757362204621,0.5073,4294.4,4294.3,0.6214]
[1757362204917,0.3205,4294.0,4293.9,0.3834]
[1757362205126,0.8278,4294.0,4293.9,0.4297]
[1757362206121,0.8278,4293.5,4293.4,0.37617749]
[1757362206321,0.8278,4293.5,4293.4,0.61417749]
[1757362206822,0.8278,4293.5,4293.4,0.80587749]
[1757362207219,0.8278,4293.5,4293.4,0.6214]
[1757362207419,0.8278,4293.5,4293.4,0.80331127]
[1757362207616,0.8278,4293.5,4293.4,0.56531127]
[1757362207817,0.4087,4293.3,4293.2,33.551]
[1757362208017,0.7065,4293.3,4293.2,33.789]
[1757362210423,0.7065,4292.6,4292.5,0.1917]
[1757362210625,0.7065,4292.6,4292.5,0.4297]
[1757362210920,0.7065,4292.6,4292.5,0.6214]
[1757362212827,0.5073,4292.6,4292.5,0.6214]
[1757362213123,0.2978,4292.6,4292.5,0.7412]
[1757362213624,0.3308,4293.0,4292.9,0.3834]
[1757362214021,0.53,4293.0,4292.9,0.3834]
[1757362214216,0.8278,4293.0,4292.9,0.3834]
[1757362214419,0.8278,4293.0,4292.9,0.1917]
[1757362216017,0.8278,4293.0,4292.9,0.3834]
[1757362217823,0.8278,4293.0,4292.9,0.1917]
[1757362218031,0.8278,4293.0,4292.9,0.238]
[1757362218230,0.8278,4293.0,4292.4,0.19030019]
[1757362218420,0.8278,4293.0,4292.2,0.34931029]
[1757362218421,0.8278,4293.0,4292.5,0.3572]
[1757362218617,0.8278,4293.0,4292.9,0.1907]
[1757362218819,0.8278,4293.0,4292.9,0.3814]
[1757362219227,0.4191,4293.0,4292.9,0.5006]
[1757362219429,0.6187,4293.0,4292.9,0.3814]
[1757362219727,0.832,4293.0,4292.9,0.3814]
[1757362221221,0.8492,4292.5,4292.4,0.1907]
[1757362221527,0.7265,4292.4,4292.3,0.1907]
[1757362221723,0.7265,4292.4,4292.3,0.6194]
[1757362221927,0.5132,4292.4,4292.3,0.6194]
[1757362222118,0.5132,4292.4,4292.3,0.7386]
[1757362223121,0.3136,4292.4,4292.3,0.7386]
[1757362223622,0.3136,4292.4,4292.3,4.7386]
[1757362223823,0.1213,4293.0,4292.3,4.7386]
[1757362223824,0.3136,4292.9,4292.8,0.5006]
[1757362224128,0.5342,4294.0,4293.9,0.2119]
[1757362224326,0.5342,4294.0,4293.9,0.6147]
[1757362224720,0.1227,4294.5,4293.9,0.889]
[1757362224921,0.3223,4294.5,4294.4,0.4257]
[1757362225118,0.3223,4294.5,4294.4,0.7]
[1757362225317,0.1227,4295.0,4294.5,0.2743]
[1757362225522,0.5356,4295.0,4294.9,0.4257]
[1757362225922,0.8492,4295.0,4294.9,0.4257]
[1757362226327,0.8492,4295.0,4294.9,0.2119]
[1757362226531,0.8492,4295.0,4294.6,0.238]
[1757362227017,0.8492,4295.0,4294.4,0.2119]
[1757362227018,0.8492,4294.5,4294.4,0.2119]
[1757362227218,0.8492,4294.5,4294.4,0.6637]
[1757362227425,0.8492,4294.5,4294.4,0.238]
[1757362228325,0.8492,4294.5,4294.4,0.4499]
[1757362228534,0.8492,4294.5,4294.4,0.9383]
[1757362228535,0.3136,4294.5,4294.4,0.9383]
[1757362229431,0.5132,4294.5,4294.4,0.9383]
[1757362229629,0.6359,4294.5,4294.4,0.9383]
[1757362230132,0.8492,4294.5,4294.4,0.6637]
[1757362231221,0.6359,4294.5,4294.4,0.9383]
[1757362231420,0.1227,4295.0,4294.4,0.6637]
[1757362231620,0.3136,4294.9,4294.4,0.6637]
[1757362231832,0.5132,4294.5,4294.4,0.9383]
[1757362232125,0.6359,4294.5,4294.4,0.9383]
[1757362232724,0.3136,4294.5,4294.4,0.9383]
[1757362232924,0.3136,4294.9,4294.4,0.9383]
[1757362233127,0.3136,4294.9,4294.4,0.6637]
[1757362233327,0.1227,4295.0,4294.4,0.6637]
[1757362233525,0.3136,4294.9,4294.4,0.6637]
[1757362234135,0.1227,4295.0,4294.4,0.6637]
[1757362234336,0.5132,4294.5,4294.4,0.9383]
[1757362234537,0.8492,4294.5,4294.4,0.238]
[1757362234830,0.8492,4294.5,4294.4,0.4499]
[1757362235527,0.8492,4294.5,4294.4,0.6637]
[1757362237635,0.8492,4294.5,4294.4,0.238]
[1757362240137,0.3136,4293.7,4293.6,33.826]
[1757362240436,0.6359,4294.0,4293.9,0.7007]
[1757362240624,0.8492,4294.0,4293.9,0.4257]
[1757362241031,0.8492,4294.0,4293.9,0.2119]
[1757362241229,0.3136,4293.9,4293.6,33.789]
[1757362241426,0.7265,4293.9,4293.8,0.2119]
[1757362241838,0.3136,4293.8,4293.6,33.789]
[1757362242025,0.4129,4293.7,4293.6,33.551]
[1757362242232,0.7265,4293.7,4293.6,33.789]
[1757362243936,0.3136,4293.7,4293.6,34.064]
[1757362244131,0.1227,4294.0,4293.9,0.4257]
[1757362244132,0.6359,4294.0,4293.9,0.4257]
[1757362244333,0.6359,4294.0,4293.9,0.7007]
[1757362245236,0.8492,4294.0,4293.9,0.4257]
[1757362247538,0.5356,4294.0,4293.6,33.789]
[1757362247737,0.7185,4293.9,4293.8,0.2002]
[1757362248240,0.7185,4293.9,4293.8,0.404]
[1757362249043,0.7185,4293.9,4293.8,0.6786]
[1757362249544,0.7185,4293.9,4293.8,0.404]
[1757362249934,0.01345641,4294.5,4293.8,0.404]
[1757362250141,0.1227,4295.0,4294.9,0.5043]
[1757362250142,0.5201,4295.0,4294.9,0.5043]
[1757362250438,0.3974,4295.0,4294.9,0.9461]
[1757362250947,0.3974,4295.0,4294.9,1.13450819]
[1757362251443,0.3974,4295.0,4294.9,0.9461]
[1757362252039,0.7185,4295.0,4294.9,0.9461]
[1757362253545,0.7185,4295.0,4294.9,1.13214705]
[1757362254145,0.7185,4295.0,4294.9,0.9461]
[1757362254342,0.8458,4295.0,4294.9,0.4382]
[1757362254546,0.8458,4295.0,4294.9,0.238]
[1757362254743,0.5247,4295.0,4294.9,0.238]
[1757362255249,0.8458,4295.0,4294.9,0.238]
[1757362256250,0.8458,4295.0,4294.5,0.3041]
[1757362256450,0.8458,4295.0,4294.6,0.237]
[1757362256645,0.8458,4295.0,4294.7,0.237]
[1757362256949,0.8458,4295.0,4294.8,0.237]
[1757362257649,0.8458,4295.0,4294.2,0.3041]
[1757362257845,0.8458,4295.0,4294.8,0.237]
[1757362260442,0.5247,4295.0,4294.8,0.5411]
[1757362260752,0.7185,4294.9,4294.8,0.237]
[1757362261847,0.7185,4294.9,4294.1,0.3041]
[1757362262145,0.7185,4294.3,4294.2,0.237]
[1757362262757,0.7185,4294.3,4294.2,0.4372]
[1757362263259,0.3211,4294.2,4293.7,0.3041]
[1757362263555,0.7185,4293.8,4293.7,0.5043]
[1757362263745,0.7185,4293.8,4293.7,0.7081]
[1757362264351,0.7185,4293.8,4293.7,0.9451]
[1757362266053,0.3974,4293.8,4293.7,0.9451]
[1757362266452,0.7185,4293.8,4293.7,0.9451]
[1757362269658,0.2004,4293.8,4293.7,0.9451]
[1757362270362,0.3211,4294.1,4293.7,0.641]
[1757362270558,0.5215,4294.1,4294.0,0.5229]
[1757362270760,0.5215,4294.1,4294.0,0.827]
[1757362271454,0.5215,4294.1,4294.0,1.064]
[1757362272563,0.7185,4294.1,4294.0,0.9451]
[1757362273164,0.7185,4294.1,4294.0,0.237]
[1757362273964,0.1273,4294.5,4293.7,0.3041]
[1757362273965,0.1273,4294.0,4293.7,0.3041]
[1757362274263,0.7185,4293.8,4293.7,0.7081]
[1757362274863,0.3974,4293.8,4293.7,0.7081]
[1757362275066,0.2004,4293.8,4293.7,0.9451]
[1757362275364,0.5215,4294.1,4294.0,0.5229]
[1757362275565,0.5215,4294.1,4294.0,1.064]
[1757362275864,0.7185,4294.1,4294.0,1.064]
[1757362276267,0.7185,4294.1,4294.0,0.9451]
[1757362278376,0.7315,4294.9,4294.8,0.7121]
[1757362278666,0.7315,4294.9,4294.8,0.9491]
[1757362280966,0.2119,4294.9,4294.8,0.9491]
[1757362281467,0.5225,4294.9,4294.8,0.9491]
[1757362281665,0.7315,4294.9,4294.8,0.9491]
[1757362284362,0.7315,4294.9,4294.8,0.7329]
[1757362286363,0.7315,4294.9,4294.8,0.9491]
[1757362291384,0.7315,4294.9,4294.1,0.2953]
[1757362291687,0.7315,4294.9,4294.8,0.2006]
[1757362291888,0.7315,4294.9,4294.8,0.4959]
[1757362296589,0.7315,4294.9,4294.3,0.2953]
[1757362296785,0.7315,4294.9,4294.4,0.237]
[1757362297086,0.1306,4295.0,4294.4,0.237]
[1757362297288,0.7315,4294.5,4294.4,0.7329]
[1757362297485,0.7315,4294.5,4294.4,0.9491]
[1757362299493,0.2119,4294.5,4294.4,0.9491]
[1757362299980,0.3106,4294.8,4294.4,0.6538]
[1757362300187,0.3106,4294.8,4294.7,0.7121]
[1757362300188,0.5225,4294.8,4294.7,0.7121]
[1757362301884,0.3106,4295.1,4294.7,0.7121]
[1757362302089,0.3106,4295.1,4294.8,0.2953]
[1757362302388,0.3106,4295.4,4294.8,0.2953]
[1757362302690,1.3118122,4295.3,4295.2,0.4959]
[1757362303788,0.1273,4296.0,4294.5,0.1219]
[1757362303789,0.5225,4295.9,4295.8,0.2006]
[1757362303991,1.31191069,4295.9,4295.8,0.4959]
[1757362304491,0.7315,4295.2,4295.1,0.7329]
[1757362305593,0.7315,4295.2,4295.1,0.9491]
[1757362306486,0.7315,4295.2,4294.8,0.237]
[1757362306688,0.7298,4294.9,4294.8,0.4481]
[1757362306887,0.7298,4294.9,4294.8,0.7705]
[1757362311296,0.7298,4294.9,4294.8,0.9805]
[1757362311492,0.7298,4295.4,4295.3,0.4211]
[1757362311699,1.30873852,4295.4,4295.3,0.7435]
[1757362311999,0.3033,4296.4,4296.3,0.2077]
[1757362312193,0.1256,4297.0,4296.3,0.6524]
[1757362312399,0.5521,4297.0,4296.9,0.7435]
[1757362312898,0.2131,4297.0,4296.9,0.7435]
[1757362313796,0.1256,4297.5,4296.9,0.4211]
[1757362313992,0.5521,4297.5,4297.4,0.2111]
[1757362314193,0.8554,4297.5,4297.4,0.2111]
[1757362314797,0.642,4297.5,4297.4,0.7435]
[1757362315104,0.5164,4297.5,4297.4,0.7435]
[1757362315406,0.7298,4297.5,4297.4,0.7435]
[1757362315602,0.8554,4297.5,4297.4,0.7435]
[1757362316301,0.8554,4297.5,4297.4,0.4211]
[1757362317409,0.8554,4297.5,4297.4,0.2111]
[1757362318902,0.7298,4297.5,4297.4,0.7435]
[1757362319101,0.7298,4297.5,4297.4,0.2111]
[1757362319301,0.8554,4297.5,4296.6,0.3224]
[1757362319507,0.3033,4297.4,4296.7,0.3224]
[1757362319704,0.1256,4297.5,4296.7,0.23271999]
[1757362319905,0.7298,4297.4,4297.3,0.2111]
[1757362320411,0.7298,4296.7,4296.6,0.2111]
[1757362321310,0.8554,4296.5,4296.4,0.237]
[1757362321514,0.8554,4296.5,4296.4,0.4481]
[1757362322309,0.8554,4296.5,4296.4,0.9805]
[1757362323911,0.8554,4296.5,4296.4,0.6581]
[1757362324115,0.8554,4296.5,4295.6,0.3224]
[1757362324314,0.8554,4296.5,4296.1,0.237]
[1757362325712,0.5521,4296.5,4296.1,0.237]
[1757362325908,0.7298,4296.4,4296.3,0.2111]
[1757362327604,0.7298,4296.4,4295.6,0.3224]
[1757362327806,0.7298,4295.7,4295.6,0.2111]
[1757362328015,0.7298,4295.7,4295.6,0.4481]
[1757362328811,0.7298,4295.7,4295.6,0.6581]
[1757362330819,0.7298,4295.7,4295.6,0.9805]
[1757362332818,0.5164,4295.7,4295.6,0.9805]
[1757362333319,0.2131,4295.8,4295.7,0.3224]
[1757362333520,0.5164,4295.8,4295.7,0.7435]
[1757362339317,0.3033,4295.8,4295.7,0.7435]
[1757362339512,0.3019,4296.4,4295.7,0.4211]
[1757362339712,0.3019,4296.4,4295.8,0.3214]
[1757362340319,0.5106,4296.4,4296.3,0.2039]
[1757362340515,0.7258,4296.4,4296.3,0.2039]
[1757362341521,0.7258,4296.4,4296.1,0.237]
[1757362342422,0.7258,4296.4,4296.1,0.5584]
[1757362342618,0.7258,4296.3,4296.2,0.2039]
[1757362343723,0.7258,4296.3,4296.1,0.237]
[1757362347328,0.7258,4296.3,4296.2,0.2039]
[1757362348028,0.7258,4296.3,4296.2,0.733]
[1757362348227,0.7258,4296.3,4296.2,0.4116]
[1757362349226,0.7258,4296.3,4296.1,0.237]
[1757362350725,0.1256,4296.5,4295.9,0.2039]
[1757362350726,0.1286,4296.0,4295.9,0.2039]
[1757362350925,0.5525,4296.0,4295.9,0.2039]
[1757362351125,0.5525,4296.0,4295.9,0.4116]
[1757362351324,0.8544,4296.0,4295.9,0.733]
[1757362351929,0.8544,4296.0,4295.9,0.2039]
[1757362352828,0.8544,4296.0,4295.8,0.237]
[1757362353426,0.8544,4296.0,4295.9,0.2039]
[1757362354325,0.8544,4296.0,4295.9,0.5253]
[1757362355330,0.8544,4296.0,4295.9,0.733]
[1757362356230,0.3019,4296.0,4295.9,0.733]
[1757362356426,0.8544,4296.0,4295.9,0.733]
[1757362356622,0.8544,4296.0,4295.9,0.4116]
[1757362357227,0.8544,4296.0,4295.8,0.237]
[1757362357829,0.8544,4296.0,4295.0,2.0806525]
[1757362357830,0.4239,4295.3,4295.0,2.0806525]
[1757362358031,0.7258,4295.3,4295.2,33.776]
[1757362358636,0.7258,4295.3,4295.2,34.0974]
[1757362359831,0.7258,4295.3,4295.2,33.539]
[1757362360535,0.7258,4295.3,4295.1,0.237]
[1757362366129,0.7258,4295.3,4295.2,0.2039]
[1757362366628,0.7258,4295.3,4295.1,0.237]
[1757362367735,0.4239,4295.3,4295.2,0.5067]
[1757362368035,0.4239,4295.3,4295.2,0.1962]
[1757362368236,0.4239,4295.3,4295.1,0.237]
[1757362368440,0.7407,4295.2,4295.1,0.237]
[1757362373744,0.7407,4295.2,4294.7,0.3105]
[1757362374039,0.7407,4294.8,4294.1,0.3105]
[1757362374343,0.7407,4294.2,4294.1,0.707]
[1757362376947,0.7407,4294.2,4294.1,0.944]
[1757362380244,0.7407,4294.2,4294.1,0.6335]
[1757362381448,0.7407,4294.2,4294.1,0.944]
[1757362386548,0.5299,4294.2,4294.1,0.944]
[1757362390949,0.1237,4294.5,4294.2,0.3105]
[1757362391247,0.5299,4294.4,4294.3,0.707]
[1757362391450,0.7407,4294.4,4294.3,0.707]
[1757362394951,0.7407,4294.4,4294.3,0.3965]
[1757362395557,0.7407,4294.4,4294.3,0.1962]
[1757362396459,0.7407,4294.4,4294.3,0.4994]
[1757362396858,0.7407,4294.4,4294.3,0.7128]
[1757362398258,0.7407,4294.4,4294.3,0.4096]
[1757362398658,0.7407,4294.4,4294.3,0.1962]
[1757362400757,0.7407,4294.4,4294.1,0.237]
[1757362404963,0.7373,4293.4,4293.3,0.1975]
[1757362405163,0.7373,4293.4,4293.3,0.9511]
[1757362405365,0.5344,4293.4,4293.3,0.9511]
[1757362405667,0.3238,4293.4,4293.3,0.9511]
[1757362407671,0.5344,4293.4,4293.3,0.9511]
[1757362408865,0.7373,4293.4,4293.3,0.9511]
[1757362415875,0.7373,4293.4,4293.3,0.6479]
[1757362416077,0.1269,4293.0,4292.9,0.1975]
[1757362416277,0.1269,4293.5,4293.0,0.3032]
[1757362416278,0.2106,4293.1,4293.0,0.3032]
[1757362416580,0.1269,4293.5,4293.0,0.8323]
[1757362416777,0.1269,4294.0,4293.0,0.8323]
[1757362416778,0.3238,4293.4,4293.3,0.7141]
[1757362416988,0.7373,4293.4,4293.3,0.7141]
[1757362417283,0.7373,4293.4,4293.2,0.237]
[1757362423286,0.7373,4293.4,4291.7,2.0806525]
[1757362423287,0.7373,4292.8,4291.7,2.0806525]
[1757362423583,0.1269,4293.0,4291.7,0.237]
[1757362423584,0.5404,4292.0,4291.7,0.237]
[1757362423987,0.3238,4291.9,4291.8,0.1975]
[1757362424292,0.7373,4291.9,4291.8,0.1975]
[1757362424789,0.7373,4291.9,4291.8,0.5007]
[1757362425784,0.7373,4291.9,4291.8,0.1975]
[1757362429286,0.7373,4291.9,4291.7,0.237]
[1757362434186,0.7373,4291.9,4291.1,0.3012]
[1757362442390,0.1296,4291.0,4290.8,33.549]
[1757362442694,0.7025,4290.9,4290.8,33.549]
[1757362442892,0.7025,4290.9,4290.8,33.786]
[1757362443485,0.7025,4290.9,4290.8,34.0872]
[1757362446296,0.1296,4293.0,4292.4,0.404]
[1757362446492,0.5348,4293.0,4292.9,0.2066]
[1757362446795,0.8321,4293.0,4292.9,0.2066]
[1757362448190,0.2973,4293.4,4292.9,0.58625422]
[1757362448390,0.2973,4293.9,4293.4,0.3012]
[1757362448698,0.5348,4294.5,4294.4,0.2066]
[1757362449196,0.8321,4294.5,4294.4,0.2066]
[1757362449893,0.8321,4294.5,4294.4,0.404]
[1757362451690,0.8321,4294.5,4294.4,0.2066]
[1757362452795,0.8321,4294.5,4294.1,0.3012]
[1757362453890,0.8321,4294.5,4294.0,0.236]
[1757362455902,0.1296,4294.5,4294.0,0.5372]
[1757362456201,0.7268,4294.1,4294.0,0.9489]
[1757362460703,0.7268,4294.1,4294.0,0.4426]
[1757362461998,0.3256,4293.9,4293.1,0.2974]
[1757362462193,0.729,4293.2,4293.1,0.2125]
[1757362463706,0.729,4293.2,4292.5,0.2974]
[1757362464005,0.729,4292.7,4292.6,0.951]
[1757362464204,0.729,4292.7,4292.6,1.135679]
[1757362469601,0.5272,4292.7,4292.6,1.135679]
[1757362470709,0.1225,4294.0,4293.4,0.2974]
[1757362471005,0.1225,4294.0,4293.0,0.1279]
[1757362471006,0.5259,4294.0,4293.9,0.715]
[1757362471703,0.5259,4294.0,4293.9,0.4176]
[1757362471908,0.5259,4294.0,4293.3,0.2974]
[1757362472107,0.4034,4293.4,4293.3,0.5099]
[1757362472308,0.4034,4293.4,4293.3,0.7459]
[1757362472804,0.729,4293.4,4292.6,0.184679]
[1757362473109,0.3256,4293.3,4292.7,0.5334]
[1757362473298,0.5272,4292.8,4292.7,0.951]
[1757362473908,0.2016,4292.8,4292.7,0.951]
[1757362474214,0.729,4292.8,4292.7,0.715]
[1757362474611,0.729,4292.8,4292.7,0.951]
[1757362475305,0.729,4292.8,4292.7,0.236]
[1757362478312,0.4481,4292.5,4292.0,0.2974]
[1757362478515,0.6499,4292.0,4291.9,0.4485]
[1757362478713,0.8515,4292.0,4291.9,0.4485]
[1757362479015,0.8515,4292.0,4291.9,0.7459]
[1757362479613,0.8515,4292.0,4291.9,0.236]
[1757362484111,0.729,4292.0,4291.9,0.951]
[1757362485209,0.8515,4292.0,4291.9,0.951]
[1757362487816,0.8515,4292.0,4291.9,0.6536]
[1757362488408,0.8515,4292.0,4291.9,0.236]
[1757362490912,0.8515,4292.0,4291.3,0.3255]
[1757362491108,0.7172,4291.4,4291.3,0.5298]
[1757362493819,0.7172,4291.4,4291.3,0.7291]
[1757362498818,0.5044,4291.4,4291.3,0.7291]
[1757362499824,0.303,4291.9,4291.4,0.3255]
[1757362500024,0.303,4291.9,4291.0,0.55165725]
[1757362500025,0.7172,4291.9,4291.8,0.7291]
[1757362502526,0.4142,4291.9,4291.5,0.5615]
[1757362502721,0.7172,4291.6,4291.5,0.7658]
[1757362505126,0.8421,4291.5,4291.4,0.7658]
[1757362505627,0.7172,4290.8,4290.7,0.2043]
[1757362505828,0.8421,4290.5,4290.4,0.5298]
[1757362506531,0.8421,4290.5,4290.4,0.2043]
[1757362506829,0.8421,4290.5,4290.4,0.5298]
[1757362507426,0.8421,4290.5,4290.4,0.2043]
[1757362508030,0.8421,4290.5,4290.2,0.236]
[1757362508230,0.8421,4290.5,4290.4,0.7291]
[1757362509030,0.8421,4290.5,4289.9,0.18224275]
[1757362509230,0.8421,4290.5,4290.0,0.3255]
[1757362509430,0.8421,4290.5,4289.8,0.3255]
[1757362509631,0.8421,4290.5,4290.4,0.2043]
[1757362510227,0.7172,4290.5,4290.4,0.7291]
[1757362512338,0.8421,4290.5,4289.8,0.3255]
[1757362512542,0.2014,4289.9,4289.8,0.96219]
[1757362512840,0.2014,4289.9,4289.8,0.91759426]
[1757362514046,0.8421,4290.5,4290.4,0.7291]
[1757362514245,0.7172,4290.5,4290.4,0.7291]
[1757362517247,0.8432,4290.5,4290.4,0.4036]
[1757362517447,0.8432,4290.5,4290.4,0.2043]
[1757362518442,0.8432,4290.5,4290.1,0.3041]
[1757362518443,0.8432,4290.5,4289.8,0.3041]
[1757362519745,0.8432,4290.5,4290.4,0.7179]
[1757362524051,0.8432,4290.5,4290.4,0.2012]
[1757362524751,0.5115,4290.5,4290.4,0.7179]
[1757362524947,0.7138,4290.5,4290.4,0.7179]
[1757362525148,0.8398,4290.5,4290.4,0.7179]
[1757362525348,0.8398,4290.5,4290.1,0.3041]
[1757362525548,0.8398,4290.5,4289.9,0.3041]
[1757362526153,0.8398,4290.5,4290.4,0.2012]
[1757362526854,0.8398,4290.5,4290.4,0.7179]
[1757362527849,0.8398,4290.5,4290.4,0.2012]
[1757362528051,0.8398,4290.5,4290.1,0.3041]
[1757362528353,0.8398,4290.5,4289.7,0.41983263]
[1757362528354,0.4108,4289.9,4289.8,0.7179]
[1757362528548,0.7236,4289.9,4289.8,0.7179]
[1757362529249,0.3128,4290.4,4289.9,0.3041]
[1757362529449,0.4108,4290.1,4290.0,0.7179]
[1757362529651,0.7236,4290.1,4290.0,0.7179]
[1757362535155,0.5213,4290.1,4290.0,0.7179]
[1757362535362,0.8496,4290.5,4290.4,0.7179]
[1757362537155,0.8496,4290.5,4290.1,0.3041]
[1757362537357,0.8496,4290.5,4290.0,0.1307]
[1757362537762,0.8496,4290.5,4290.1,0.3041]